bitfinex/quotes_ETHUSD_20250319
["timestamp","ask_amount","ask_price","bid_price","bid_amount"]
[1742386415664,4.56722981,2026.0,2025.7,4.9364]
[1742386415837,6.34171849,2026.0,2025.5,5.71157]
[1742386416037,4.56722981,2025.8,2025.5,9.87385]
[1742386416436,4.56722981,2025.8,2025.6,4.93679]
[1742386416669,4.56722981,2025.8,2025.5,9.87377]
[1742386416881,4.56722981,2025.8,2025.5,4.93688]
[1742386417037,0.8107,2025.7,2025.1,0.7888]
[1742386417237,5.74727,2025.7,2025.3,4.93735]
[1742386417443,4.56722981,2025.6,2025.3,4.93735]
[1742386417978,6.6617,2025.7,2025.4,4.93717]
[1742386418672,6.6617,2025.7,2025.4,4.93713]
[1742386418875,1.12289298,2025.6,2025.4,4.93713]
[1742386421178,5.25281791,2025.6,2025.4,4.93713]
[1742386422076,5.25281791,2025.6,2025.4,9.87423]
[1742386422282,5.25281791,2025.6,2025.5,4.93705]
[1742386423244,5.25281791,2025.6,2025.4,9.87441]
[1742386423578,5.25281791,2025.6,2025.4,4.9371]
[1742386423881,5.25281791,2025.6,2025.5,4.93705]
[1742386424078,5.25281791,2025.6,2025.4,4.93715]
[1742386424578,5.25281791,2025.6,2025.4,4.93713]
[1742386424980,5.25281791,2025.6,2025.5,4.93705]
[1742386425278,5.25281791,2025.6,2025.4,9.87432]
[1742386425474,5.25281791,2025.6,2025.4,9.87433]
[1742386425777,4.12992493,2025.6,2025.5,4.93705]
[1742386426282,4.12992493,2025.6,2025.4,9.87431]
[1742386426642,4.12992493,2025.6,2025.4,9.8743]
[1742386426877,4.12992493,2025.6,2025.3,4.9375]
[1742386427184,4.12992493,2025.6,2025.3,9.87495]
[1742386427351,4.12992493,2025.6,2025.4,4.93724]
[1742386428470,4.12992493,2025.6,2025.5,4.93705]
[1742386429002,0.8107,2025.7,2025.6,4.9368]
[1742386429203,4.12992493,2026.2,2026.1,4.93559]
[1742386429405,9.87133,2026.1,2025.6,5.924015]
[1742386429703,9.87133,2026.1,2025.5,0.8289]
[1742386429704,4.12992493,2025.9,2025.8,4.93631]
[1742386430987,4.12992493,2025.9,2025.7,4.93641]
[1742386431714,4.12992493,2025.9,2025.8,4.93632]
[1742386432710,6.08990436,2026.3,2026.0,4.9358]
[1742386432711,4.12992493,2026.1,2026.0,4.9358]
[1742386433086,4.12992493,2026.1,2025.9,4.93606]
[1742386433409,4.12992493,2026.1,2025.9,9.87205]
[1742386433600,4.12992493,2026.1,2026.0,4.93583]
[1742386433910,4.12992493,2026.3,2026.2,4.93534]
[1742386434709,5.54673898,2026.3,2026.0,4.9358]
[1742386434916,9.87178,2026.0,2025.5,0.7544]
[1742386435072,4.12992493,2025.6,2025.4,4.9372]
[1742386435278,4.12992493,2025.6,2025.4,4.93715]
[1742386435588,4.62397742,2025.6,2025.3,4.93743]
[1742386435783,4.12992493,2025.4,2025.2,9.87532]
[1742386436116,4.12992493,2025.4,2025.3,4.93754]
[1742386436415,4.93754,2025.3,2025.0,0.36793036]
[1742386436613,4.12992493,2025.4,2025.2,4.9377]
[1742386436926,5.37291742,2025.3,2024.9,4.93848]
[1742386437079,4.12992493,2025.0,2024.8,4.93861]
[1742386437275,4.12992493,2025.0,2024.8,4.9386]
[1742386437475,4.12992493,2025.0,2024.9,4.93851]
[1742386437677,0.7577,2025.5,2025.1,4.93783]
[1742386437985,4.12992493,2025.4,2025.3,4.93744]
[1742386439222,4.12992493,2025.8,2025.4,0.7892]
[1742386439416,4.12992493,2025.8,2025.6,4.93657]
[1742386439600,4.12992493,2025.8,2025.7,4.93656]
[1742386439800,4.12992493,2026.1,2026.0,4.93583]
[1742386440000,4.62035742,2026.1,2026.0,4.93583]
[1742386440203,4.12992493,2026.1,2026.0,4.93583]
[1742386440388,6.6154,2026.4,2026.2,4.93521]
[1742386440389,4.12992493,2026.3,2026.2,4.93521]
[1742386440594,4.12992493,2026.5,2026.3,4.93491]
[1742386440795,4.12992493,2026.5,2026.4,4.93485]
[1742386441190,0.8112,2026.7,2026.6,4.93437]
[1742386441391,4.12992493,2026.7,2026.6,4.93437]
[1742386441618,17.07,2026.8,2026.6,4.93437]
[1742386441819,17.07,2026.8,2026.7,4.93412]
[1742386442214,4.12992493,2026.9,2026.7,4.93412]
[1742386442521,4.12992493,2026.9,2026.7,9.86803]
[1742386442729,4.12992493,2026.9,2026.8,4.93388]
[1742386443112,0.7967,2027.2,2027.0,4.93339]
[1742386443314,21.63646392,2027.3,2027.1,4.93304]
[1742386443901,3.0,2027.2,2026.6,0.7809]
[1742386444101,4.56746392,2026.8,2026.6,4.93426]
[1742386444324,4.56746392,2026.8,2026.5,4.93442]
[1742386444635,4.56746392,2026.8,2026.6,4.93428]
[1742386444929,4.56746392,2026.8,2026.5,4.93453]
[1742386445229,4.56746392,2026.8,2026.2,11.58605]
[1742386445230,4.56746392,2026.6,2026.3,4.93498]
[1742386445390,4.56746392,2026.4,2026.3,4.93509]
[1742386446719,5.32436392,2026.6,2026.4,4.93481]
[1742386447121,10.25887392,2026.6,2026.2,4.93534]
[1742386447422,4.56746392,2026.4,2026.2,4.93534]
[1742386447625,4.56746392,2026.4,2026.2,4.93514]
[1742386447835,5.32436392,2026.6,2026.4,4.93474]
[1742386448126,5.32436392,2026.6,2026.2,4.93527]
[1742386448328,4.56746392,2026.4,2026.1,4.93555]
[1742386448528,10.52829931,2026.4,2026.0,4.9358]
[1742386448728,5.59334931,2026.4,2026.1,4.93558]
[1742386449096,4.56746392,2026.4,2026.1,4.93547]
[1742386449328,4.56746392,2026.4,2026.2,4.93525]
[1742386449532,4.56746392,2026.4,2026.1,4.93547]
[1742386449825,4.56746392,2026.2,2026.0,9.87138]
[1742386450017,4.56746392,2026.2,2026.1,4.93559]
[1742386450724,4.56746392,2026.4,2026.2,4.93523]
[1742386451440,6.21311224,2026.4,2026.2,4.93523]
[1742386451810,4.839289,2026.2,2026.1,4.93553]
[1742386452131,4.56746392,2026.4,2026.2,4.93513]
[1742386452330,4.56746392,2026.4,2026.3,4.9351]
[1742386452898,4.56746392,2026.4,2026.2,4.93513]
[1742386453099,4.56746392,2026.4,2023.6,6.22613353]
[1742386453100,0.55,2026.3,2025.7,0.7958]
[1742386453337,0.55,2026.3,2025.6,4.93667]
[1742386453338,4.56746392,2025.8,2025.6,4.93667]
[1742386453841,4.56746392,2025.8,2025.7,4.93656]
[1742386455942,2.231852,2025.7,2025.6,4.93666]
[1742386456238,5.37606392,2025.8,2025.6,4.93665]
[1742386456442,5.37606392,2025.8,2025.6,9.87335]
[1742386457446,5.37606392,2025.8,2025.6,4.93665]
[1742386457623,5.37606392,2025.8,2025.6,9.87329]
[1742386457958,5.37606392,2025.8,2025.6,9.87327]
[1742386458158,5.37606392,2025.8,2025.6,4.93663]
[1742386458324,5.37606392,2025.8,2025.5,4.93703]
[1742386459072,4.56746392,2025.6,2025.3,5.70092]
[1742386459351,4.56746392,2025.6,2025.2,4.93767]
[1742386459352,5.70092,2025.3,2025.2,4.93767]
[1742386459552,4.56746392,2025.4,2025.3,4.93754]
[1742386459851,4.56746392,2025.4,2025.2,4.93773]
[1742386460356,5.32626392,2025.4,2025.1,4.938]
[1742386460554,4.56746392,2025.2,2024.8,4.93852]
[1742386460756,4.56746392,2025.0,2024.7,4.93896]
[1742386460955,5.32626392,2025.0,2024.8,4.93874]
[1742386461116,5.32626392,2025.0,2024.7,4.93886]
[1742386461323,5.32626392,2025.0,2024.8,4.93868]
[1742386462670,5.32626392,2025.0,2024.6,5.76182]
[1742386462822,5.32626392,2025.0,2024.7,4.93878]
[1742386463022,5.32626392,2025.0,2024.8,9.87726]
[1742386463222,4.56746392,2025.0,2024.8,4.93859]
[1742386463455,4.56746392,2025.0,2024.7,4.93898]
[1742386463624,4.56746392,2024.8,2024.6,4.93924]
[1742386463955,4.56746392,2024.8,2024.6,4.93908]
[1742386464251,4.56746392,2024.8,2024.7,4.939]
[1742386465158,5.63498518,2025.0,2024.7,9.878]
[1742386465379,5.63498518,2025.0,2024.7,9.87784]
[1742386465585,5.63498518,2025.0,2024.7,4.93884]
[1742386465892,4.56746392,2025.0,2024.8,4.93862]
[1742386466075,4.56746392,2025.0,2024.7,4.93897]
[1742386466248,4.56746392,2024.8,2024.6,4.93908]
[1742386466452,5.38466392,2024.8,2024.5,4.93947]
[1742386466779,5.38466392,2024.8,2024.5,9.87881]
[1742386466780,4.56746392,2024.6,2024.5,9.87881]
[1742386466954,4.56746392,2024.6,2024.5,4.93934]
[1742386468688,4.56746392,2024.6,2024.4,4.93967]
[1742386468850,4.56746392,2024.6,2024.5,4.93949]
[1742386469288,5.38466392,2024.8,2024.6,4.93921]
[1742386469886,3.116448,2024.6,2024.5,4.93949]
[1742386470087,5.38466392,2024.8,2024.5,4.93949]
[1742386470275,7.49351531,2024.8,2024.5,4.93949]
[1742386470588,7.49351531,2024.8,2024.5,4.93933]
[1742386471169,7.49351531,2024.8,2024.5,4.93932]
[1742386471371,7.49351531,2024.8,2024.6,4.93915]
[1742386471577,4.93915,2024.6,2024.4,4.93973]
[1742386471753,12.43227531,2024.8,2024.4,9.87935]
[1742386471952,12.43227531,2024.8,2024.4,9.8792]
[1742386472187,12.43227531,2024.8,2024.4,4.93958]
[1742386472383,4.56746392,2024.6,2024.4,4.93955]
[1742386472549,4.56746392,2024.6,2024.2,5.76335]
[1742386472750,4.56746392,2024.3,2024.1,4.9403]
[1742386472960,4.56746392,2024.3,2024.2,4.94022]
[1742386473596,5.51817031,2024.3,2024.2,4.94022]
[1742386473804,4.56746392,2024.5,2024.2,9.88029]
[1742386474002,4.93926,2024.6,2024.3,4.93995]
[1742386474003,7.56746392,2024.6,2024.3,4.93995]
[1742386474166,7.56746392,2024.6,2024.3,9.87968]
[1742386474497,7.56746392,2024.6,2024.3,4.93984]
[1742386474703,7.56746392,2024.6,2024.2,4.94022]
[1742386474704,2.335617,2024.3,2024.2,4.94022]
[1742386474998,21.26702926,2024.6,2024.2,4.94022]
[1742386475163,4.56746392,2024.4,2024.2,4.94022]
[1742386475356,10.28410392,2024.4,2024.0,5.74399]
[1742386475568,10.28410392,2024.4,2024.0,4.94049]
[1742386475784,0.53943103,2024.3,2024.0,4.94049]
[1742386475993,0.53943103,2024.3,2024.1,4.94028]
[1742386476295,0.53943103,2024.3,2024.0,4.94065]
[1742386476485,0.53943103,2024.3,2024.0,9.88124]
[1742386476688,0.53943103,2024.3,2024.0,4.94059]
[1742386476889,5.64982641,2024.2,2023.9,4.94084]
[1742386477287,0.7721,2024.0,2023.2,0.7669]
[1742386477462,4.56746392,2023.8,2023.6,9.88314]
[1742386477655,5.33956392,2024.0,2023.8,4.94116]
[1742386477861,5.33956392,2024.0,2023.7,4.94131]
[1742386478061,1.66540539,2023.9,2023.7,4.94127]
[1742386478298,1.66540539,2023.9,2023.5,4.94179]
[1742386478467,4.56746392,2023.8,2023.2,0.7669]
[1742386478667,4.56746392,2023.8,2023.5,4.94184]
[1742386479067,4.56746392,2023.8,2023.4,4.94215]
[1742386479277,4.56746392,2023.8,2023.3,4.94241]
[1742386479278,5.32696392,2023.6,2023.3,4.94235]
[1742386479499,5.32696392,2023.6,2023.2,0.7669]
[1742386479663,4.56746392,2023.6,2023.4,4.942]
[1742386479863,17.078,2023.9,2023.7,4.94124]
[1742386480064,17.078,2023.9,2023.8,4.94119]
[1742386480697,17.078,2023.9,2023.6,5.76908]
[1742386480879,17.078,2023.9,2023.7,9.88275]
[1742386481083,17.078,2023.9,2023.7,4.94131]
[1742386481294,17.078,2023.9,2023.8,4.94119]
[1742386482285,6.8931,2024.2,2024.0,4.94069]
[1742386482685,1.51716596,2024.6,2024.0,0.8224]
[1742386483009,5.82508252,2024.5,2024.2,4.94001]
[1742386483314,4.13468079,2024.4,2024.3,4.93996]
[1742386483694,4.13468079,2024.4,2024.2,4.9401]
[1742386483872,4.13468079,2024.4,2024.3,4.93997]
[1742386484281,3.8238,2024.6,2024.3,4.93983]
[1742386484605,4.13468079,2024.4,2024.3,4.93983]
[1742386485291,6.12,2024.7,2024.3,5.72456]
[1742386485497,4.57897324,2024.6,2024.4,4.9395]
[1742386485802,4.57897324,2024.6,2024.5,4.93949]
[1742386486170,6.12,2024.7,2024.6,4.93924]
[1742386486911,6.12,2024.7,2024.5,4.93949]
[1742386487113,4.57897324,2024.6,2024.5,4.93949]
[1742386487409,5.64887056,2024.6,2024.3,4.93992]
[1742386487576,6.44217056,2024.6,2024.3,4.93992]
[1742386488177,6.44217056,2024.6,2024.3,4.93981]
[1742386488800,6.44217056,2024.6,2024.2,4.9402]
[1742386488990,4.57897324,2024.4,2024.2,4.9402]
[1742386489182,4.57897324,2024.4,2024.0,5.822]
[1742386489183,5.7171163,2024.4,2024.0,4.94063]
[1742386489409,5.33847324,2024.2,2023.8,4.94111]
[1742386489610,5.70635362,2024.2,2023.8,4.94119]
[1742386489813,5.70635362,2024.2,2023.9,4.94079]
[1742386492384,5.70635362,2024.2,2023.8,4.94116]
[1742386492585,12.61905529,2024.2,2023.7,5.69703]
[1742386492786,4.57897324,2024.0,2023.5,5.73413]
[1742386493000,4.57897324,2024.0,2023.6,4.94155]
[1742386493391,0.55,2023.9,2023.6,4.94155]
[1742386494112,0.55,2023.9,2023.6,4.94152]
[1742386494508,0.55,2023.9,2023.6,9.88305]
[1742386494710,0.55,2023.9,2023.6,9.88309]
[1742386494910,0.55,2023.9,2023.6,4.94152]
[1742386495221,3.09981205,2024.2,2023.6,0.988342]
[1742386495376,0.7595,2024.2,2024.0,4.94064]
[1742386495580,0.7595,2024.2,2023.9,4.94086]
[1742386495778,0.7595,2024.2,2023.9,9.88166]
[1742386495982,0.7595,2024.2,2024.0,4.94062]
[1742386496423,0.7595,2024.2,2023.9,9.88159]
[1742386496799,17.082,2024.3,2024.0,4.9407]
[1742386496999,17.082,2024.3,2024.1,4.94027]
[1742386497194,17.082,2024.3,2024.2,4.94022]
[1742386497395,17.082,2024.3,2024.2,5.77132]
[1742386497595,4.57897324,2024.6,2024.3,4.93997]
[1742386497800,6.12,2024.7,2024.5,4.93927]
[1742386498011,5.35007324,2024.9,2024.6,4.93924]
[1742386498601,5.35007324,2024.9,2024.5,4.93927]
[1742386498924,10.28871324,2024.9,2024.2,0.8311]
[1742386499138,1.52269832,2024.8,2024.4,4.93952]
[1742386499328,1.52269832,2024.8,2024.4,9.87911]
[1742386499689,1.52269832,2024.8,2024.4,9.87912]
[1742386499889,1.52269832,2024.8,2024.2,0.8311]
[1742386499890,4.57897324,2024.7,2024.3,4.93988]
[1742386500115,4.57897324,2024.5,2024.3,4.93988]
[1742386500291,4.57897324,2024.5,2024.2,5.77116]
[1742386500504,9.51798324,2024.7,2024.3,4.93981]
[1742386500690,1.63455625,2024.6,2024.3,4.93981]
[1742386501405,4.57897324,2024.5,2024.2,4.9402]
[1742386501599,5.40617324,2024.5,2024.1,9.8808]
[1742386501803,5.40617324,2024.5,2024.2,4.9402]
[1742386502000,0.8272,2024.5,2024.3,4.93982]
[1742386502209,8.12897324,2024.7,2024.4,4.9395]
[1742386502391,3.0,2024.9,2024.6,4.93916]
[1742386502591,5.40979832,2024.9,2024.6,4.93916]
[1742386503042,4.57897324,2024.8,2024.5,4.93941]
[1742386503240,4.57897324,2024.8,2024.5,9.87874]
[1742386503436,4.57897324,2024.8,2024.2,5.75361]
[1742386503437,4.57897324,2024.8,2024.4,4.93964]
[1742386503760,4.57897324,2024.8,2024.4,9.87924]
[1742386504121,4.57897324,2024.8,2024.5,4.93947]
[1742386504520,4.57897324,2024.8,2024.5,9.87883]
[1742386504950,4.57897324,2024.8,2024.4,9.87926]
[1742386505261,4.57897324,2024.8,2024.3,4.93994]
[1742386505262,4.57897324,2024.6,2024.3,4.93994]
[1742386505461,5.33017324,2024.6,2024.3,4.93994]
[1742386505624,0.7512,2024.6,2024.0,0.808]
[1742386505815,4.57897324,2024.2,2023.9,4.9408]
[1742386506015,5.36197324,2024.2,2024.0,4.94069]
[1742386506243,5.36197324,2024.4,2024.1,4.94044]
[1742386506444,5.48943,2024.6,2024.2,4.94004]
[1742386506445,5.12897324,2024.6,2024.2,4.94004]
[1742386506656,5.12897324,2024.6,2024.3,4.93984]
[1742386506657,3.0,2024.6,2024.3,4.93984]
[1742386506830,6.17298004,2024.6,2024.2,4.94003]
[1742386507053,4.57897324,2024.5,2024.2,9.88009]
[1742386507264,4.57897324,2024.5,2024.2,4.94003]
[1742386507557,11.83317736,2024.7,2024.4,4.93957]
[1742386507758,11.83317736,2024.7,2024.4,9.87916]
[1742386508059,7.25420412,2024.7,2024.4,4.93957]
[1742386508228,11.83317736,2024.7,2024.4,4.93957]
[1742386508430,11.46627324,2024.7,2024.4,4.93957]
[1742386508645,11.46627324,2024.7,2024.5,4.93939]
[1742386509943,10.69897324,2024.7,2024.5,9.87878]
[1742386510126,10.69897324,2024.7,2024.5,4.93939]
[1742386510445,10.69897324,2024.7,2024.5,9.8787]
[1742386510625,10.69897324,2024.7,2024.6,4.93924]
[1742386511462,4.57897324,2024.7,2024.6,4.93924]
[1742386511627,5.40377324,2025.1,2024.6,0.98787]
[1742386511827,5.40377324,2025.1,2024.8,4.93865]
[1742386512549,5.40377324,2025.1,2024.7,4.93899]
[1742386512738,4.57897324,2024.9,2024.7,4.93898]
[1742386513466,0.69336596,2025.5,2024.8,0.7523]
[1742386513624,9.51638324,2025.4,2025.0,4.93823]
[1742386513829,8.40337324,2025.4,2025.0,4.93823]
[1742386514182,4.57897324,2025.6,2025.3,4.9374]
[1742386514364,13.4750393,2025.6,2024.9,0.7523]
[1742386514529,13.4750393,2025.6,2025.1,4.93786]
[1742386514863,8.5381493,2025.6,2025.3,4.93737]
[1742386515060,13.44276596,2025.7,2025.3,4.93737]
[1742386515061,6.9444,2025.7,2025.3,4.93737]
[1742386515262,6.9444,2025.7,2025.3,9.87474]
[1742386515471,6.9444,2025.7,2025.4,9.8744]
[1742386515772,6.9444,2025.7,2025.4,4.93714]
[1742386516443,6.9444,2025.7,2025.4,9.87427]
[1742386516632,6.9444,2025.7,2025.4,4.93713]
[1742386517337,4.57897324,2025.6,2025.3,5.73959]
[1742386517567,5.73959,2025.3,2025.0,4.93813]
[1742386517737,4.57897324,2025.4,2025.1,4.93797]
[1742386518075,4.57897324,2025.4,2025.1,4.93787]
[1742386518247,4.57897324,2025.4,2025.2,4.93768]
[1742386519175,4.57897324,2025.4,2025.1,4.93796]
[1742386519387,4.57897324,2025.4,2025.1,9.87581]
[1742386520776,4.57897324,2025.4,2025.1,9.87575]
[1742386520976,4.57897324,2025.4,2025.1,4.93785]
[1742386522189,4.57897324,2025.4,2025.1,9.87575]
[1742386522367,4.57897324,2025.4,2025.1,4.93785]
[1742386522554,4.57897324,2025.4,2025.1,9.87571]
[1742386522865,4.57897324,2025.4,2025.2,4.93766]
[1742386523187,4.13067823,2025.4,2025.2,4.93766]
[1742386523478,5.63024596,2025.6,2025.2,4.93766]
[1742386523479,4.13067823,2025.3,2025.2,4.93766]
[1742386523688,4.13067823,2025.3,2025.1,9.87588]
[1742386523846,4.13067823,2025.3,2025.1,10.946308]
[1742386524237,4.13067823,2025.3,2025.2,4.93778]
[1742386525075,4.13067823,2025.3,2025.1,1.070428]
[1742386525381,4.13067823,2025.3,2025.0,4.93812]
[1742386525586,4.13067823,2025.3,2025.1,4.93793]
[1742386525946,11.292276,2025.0,2024.7,0.7813]
[1742386526185,4.13067823,2024.8,2024.7,4.93891]
[1742386527157,4.13067823,2024.8,2024.6,4.93916]
[1742386529099,4.13067823,2024.8,2024.6,4.93908]
[1742386529301,4.13067823,2024.8,2024.6,9.87821]
[1742386529502,5.75412,2024.7,2024.1,1.83919206]
[1742386529806,4.13067823,2024.2,2024.1,0.8296]
[1742386529964,4.13067823,2024.2,2024.0,4.94061]
[1742386530473,4.13067823,2024.2,2024.0,9.88115]
[1742386530668,4.13067823,2024.2,2024.0,4.94055]
[1742386531275,10.34532866,2024.4,2024.0,4.94055]
[1742386531800,12.45341053,2024.4,2024.1,4.94042]
[1742386532106,5.40549866,2024.4,2024.1,4.94042]
[1742386532612,5.40549866,2024.4,2024.2,4.94008]
[1742386532789,5.796,2024.6,2024.5,4.93949]
[1742386532975,5.796,2024.6,2024.4,4.93967]
[1742386533503,0.7871,2025.0,2024.5,0.809]
[1742386533668,0.7871,2025.0,2024.7,4.93896]
[1742386533869,5.72548,2025.0,2024.6,4.93914]
[1742386534261,10.66394,2025.0,2024.6,4.93914]
[1742386534461,5.72548,2025.0,2024.6,4.93914]
[1742386534704,5.51034087,2025.0,2024.5,5.74847]
[1742386535303,5.51034087,2025.0,2024.6,4.93907]
[1742386535506,5.51034087,2025.0,2024.6,4.93905]
[1742386535802,6.12,2025.1,2024.5,0.809]
[1742386536007,6.12,2025.1,2024.8,4.93865]
[1742386536568,6.12,2025.1,2024.8,4.93862]
[1742386536975,6.12,2025.1,2024.7,4.93897]
[1742386537307,11.05813,2025.1,2024.7,9.87785]
[1742386537506,10.74265095,2025.1,2024.6,4.93924]
[1742386537696,4.9384,2025.0,2024.6,4.93924]
[1742386538614,20.26157961,2025.1,2024.7,4.93892]
[1742386538908,10.74265095,2025.1,2024.8,4.9386]
[1742386539079,10.74265095,2025.1,2024.8,4.93867]
[1742386539603,15.68068095,2025.1,2024.6,4.93916]
[1742386539809,0.55,2024.9,2024.3,0.7656]
[1742386540008,4.93843,2025.0,2024.7,4.93898]
[1742386540520,6.12,2025.1,2024.3,0.7656]
[1742386540724,6.12,2025.1,2024.2,7.9402]
[1742386540725,6.12,2025.1,2024.8,4.9386]
[1742386541393,6.12,2025.1,2024.9,4.9384]
[1742386541595,6.12,2025.1,2024.9,4.93836]
[1742386542923,11.05803,2025.1,2024.7,5.74595]
[1742386543328,6.12,2025.1,2024.8,4.93869]
[1742386543632,6.12,2025.1,2024.9,4.9384]
[1742386544127,23.194,2025.2,2024.9,4.9384]
[1742386544293,23.194,2025.2,2025.0,4.93823]
[1742386544488,17.074,2025.2,2025.0,4.9381]
[1742386544702,17.074,2025.2,2025.1,4.93802]
[1742386545225,17.074,2025.2,2025.1,5.73922]
[1742386546622,17.074,2025.2,2025.1,4.93802]
[1742386546828,17.074,2025.2,2025.0,4.93808]
[1742386547038,17.074,2025.2,2025.1,4.93802]
[1742386548501,3.8144,2025.6,2025.1,4.93783]
[1742386548702,4.93715,2025.5,2025.1,4.93783]
[1742386548904,4.93812,2025.1,2024.7,0.7946]
[1742386549120,4.93812,2025.1,2024.7,5.73352]
[1742386549323,5.70478,2025.2,2024.8,4.93875]
[1742386549636,5.70478,2025.2,2024.8,9.87736]
[1742386550320,0.767,2025.2,2024.9,4.9385]
[1742386551330,0.767,2025.2,2024.8,9.8772]
[1742386551535,0.767,2025.2,2024.8,4.93859]
[1742386551700,0.767,2025.2,2024.9,4.93843]
[1742386551901,0.767,2025.2,2025.0,4.93823]
[1742386553132,7.13090533,2025.3,2025.0,4.93819]
[1742386553331,0.7967,2025.4,2025.1,4.93796]
[1742386553712,15.40197533,2025.5,2025.1,4.93796]
[1742386554037,4.68090533,2025.5,2025.2,4.93768]
[1742386554241,4.68090533,2025.5,2025.1,5.70262]
[1742386554431,9.61806533,2025.5,2025.1,4.93792]
[1742386554619,12.44980525,2025.5,2025.1,4.93792]
[1742386555528,7.51264525,2025.5,2025.2,4.93769]
[1742386556027,4.13090533,2025.5,2025.2,9.87538]
[1742386556343,4.13090533,2025.5,2025.3,4.93751]
[1742386556752,10.71060533,2025.6,2025.3,4.93751]
[1742386556908,9.91390533,2025.6,2025.3,4.93751]
[1742386557652,14.85071533,2025.6,2025.1,4.93801]
[1742386557831,19.12241666,2025.6,2025.2,4.93769]
[1742386558347,14.18560666,2025.6,2025.3,4.93753]
[1742386558508,4.13090533,2025.6,2025.4,0.7965]
[1742386558909,4.13090533,2025.6,2025.4,5.73378]
[1742386559424,4.13090533,2025.6,2025.4,4.93721]
[1742386559643,4.13090533,2025.6,2025.3,4.9374]
[1742386559817,4.13090533,2025.6,2025.3,9.87477]
[1742386560022,4.13090533,2025.6,2025.4,4.93726]
[1742386560218,4.13090533,2025.6,2025.3,4.93735]
[1742386560743,4.13090533,2025.6,2025.4,4.93725]
[1742386560945,4.13090533,2025.6,2025.4,4.93721]
[1742386561148,6.12,2025.7,2025.4,6.006986]
[1742386561344,6.12,2025.7,2025.4,6.007056]
[1742386561653,10.25090533,2025.7,2025.4,6.007056]
[1742386561848,10.25090533,2025.7,2025.4,6.007006]
[1742386562213,10.25090533,2025.7,2025.4,6.006956]
[1742386562414,10.25090533,2025.7,2025.3,4.93749]
[1742386562642,10.25090533,2025.7,2025.3,9.87488]
[1742386562809,10.25090533,2025.7,2025.3,9.87474]
[1742386563018,10.25090533,2025.7,2025.4,4.9372]
[1742386564053,10.25090533,2025.7,2025.3,4.93745]
[1742386564236,10.25090533,2025.7,2025.3,5.513585]
[1742386564948,10.25090533,2025.7,2025.4,4.93729]
[1742386565836,6.12,2025.7,2025.4,4.93729]
[1742386566185,6.12,2025.7,2025.4,4.93719]
[1742386566186,10.25090533,2025.7,2025.4,4.93719]
[1742386566356,10.25090533,2025.7,2025.4,4.93723]
[1742386567762,10.25090533,2025.7,2025.4,4.93716]
[1742386568562,10.25090533,2025.7,2025.3,5.513655]
[1742386568738,15.18748533,2025.7,2025.3,4.93752]
[1742386568943,10.25090533,2025.7,2025.4,4.93725]
[1742386569333,10.25090533,2025.7,2025.3,4.93741]
[1742386569547,10.25090533,2025.7,2025.4,4.93726]
[1742386570035,6.12,2025.7,2025.4,4.93726]
[1742386570431,6.12,2025.8,2025.6,5.74093]
[1742386570635,6.12,2025.8,2025.7,4.93656]
[1742386571875,6.12,2025.8,2025.6,5.74106]
[1742386572435,6.12,2025.8,2025.7,4.93656]
[1742386572957,21.20390533,2025.9,2025.7,4.93644]
[1742386574375,21.20390533,2025.9,2025.7,6.004194]
[1742386574578,21.20390533,2025.9,2025.8,4.93632]
[1742386574773,17.073,2025.9,2025.8,4.93632]
[1742386575067,7.13090533,2026.2,2025.8,9.87247]
[1742386575273,7.13090533,2026.2,2025.8,4.93615]
[1742386575478,7.13090533,2026.2,2025.8,9.87234]
[1742386576081,7.13090533,2026.2,2025.9,4.93605]
[1742386576454,7.13090533,2026.2,2026.0,4.93579]
[1742386577182,7.13090533,2026.2,2025.9,5.75742]
[1742386577375,7.13090533,2026.2,2025.9,0.8215]
[1742386577539,23.191,2026.4,2026.0,4.9358]
[1742386577878,17.071,2026.4,2025.9,1.5040554]
[1742386578087,4.13090533,2026.2,2025.9,6.4399154]
[1742386578480,4.13090533,2026.2,2026.0,4.93581]
[1742386578788,21.20190533,2026.4,2026.0,4.93567]
[1742386578994,21.20190533,2026.4,2026.0,9.87134]
[1742386579166,21.20190533,2026.4,2026.0,4.93567]
[1742386579355,26.13678533,2026.4,2026.0,4.93567]
[1742386579556,4.13090533,2026.2,2025.9,5.75755]
[1742386579763,4.13090533,2026.2,2025.9,5.75741]
[1742386579979,4.13090533,2026.2,2025.7,4.93638]
[1742386580182,4.13090533,2026.0,2025.7,11.46468]
[1742386580651,5.70275,2026.1,2025.4,5.76958]
[1742386580652,4.13090533,2025.8,2025.4,5.76958]
[1742386580993,4.13090533,2025.8,2025.4,0.8324]
[1742386581295,4.13090533,2025.8,2025.6,4.9367]
[1742386581818,4.13090533,2026.0,2025.7,4.93636]
[1742386582009,6.12,2026.2,2025.9,4.93596]
[1742386582153,4.13090533,2026.2,2025.9,4.93596]
[1742386582591,26.13693533,2026.4,2025.9,5.71377]
[1742386582791,4.13090533,2026.2,2025.9,10.64966]
[1742386582988,4.13090533,2026.2,2026.0,4.93581]
[1742386583898,4.13090533,2026.2,2025.9,5.71377]
[1742386584056,4.13090533,2026.2,2025.7,5.7176]
[1742386584057,4.9356,2026.1,2025.7,5.7176]
[1742386584256,4.13090533,2026.0,2025.8,4.93626]
[1742386584995,4.13090533,2026.2,2025.9,4.93607]
[1742386585289,9.06625533,2026.2,2025.9,4.93607]
[1742386585489,4.13090533,2026.2,2025.9,4.93607]
[1742386586009,4.13090533,2026.0,2025.9,4.93607]
[1742386586210,9.87225,2025.8,2025.0,0.7968]
[1742386586512,4.13090533,2025.3,2025.0,5.73495]
[1742386586814,4.98527854,2025.7,2025.2,4.93758]
[1742386586815,12.85340533,2025.7,2025.2,4.93758]
[1742386587009,12.85340533,2025.7,2025.3,5.431208]
[1742386587205,7.13090533,2025.7,2025.3,5.431148]